fUST/lending_fUST_20250729
["ID","MTS","AMOUNT","RATE_DAILY","PERIOD"]
[375725133,1753723865038,-565.78,0.00021917,2]
[375725134,1753723865047,-460.0,0.00021917,2]
[375725135,1753723865056,-460.0,0.00021917,2]
[375725136,1753723865065,-460.0,0.00021917,2]
[375725137,1753723865075,-460.0,0.00021917,2]
[375725138,1753723865084,-366.716529,0.00021917,2]
[375725139,1753723865093,-1054.55,0.00021917,2]
[375725140,1753723865103,-366.716529,0.00021917,2]
[375725141,1753723865112,-847.96,0.00021917,2]
[375725142,1753723865122,-644.34,0.00021917,2]
[375725143,1753723865131,-460.0,0.00021917,2]
[375725144,1753723865140,-253.40210336,0.00021917,2]
[375725145,1753723865150,-618.62,0.00021917,2]
[375725146,1753723865161,-653.34,0.00021917,2]
[375725147,1753723865170,-460.0,0.00021917,2]
[375725148,1753723865179,-776.44,0.00021917,2]
[375725149,1753723865189,-460.0,0.00021917,2]
[375725150,1753723865198,-460.0,0.00021917,2]
[375725151,1753723865208,-742.6,0.00021917,2]
[375725152,1753723865218,-488.58,0.00021917,2]
[375725153,1753723865227,-2338.21,0.00021917,2]
[375725154,1753723865235,-1430.15,0.00021917,2]
[375725155,1753723865245,-693.43,0.00021917,2]
[375725156,1753723865254,-1043.6,0.00021917,2]
[375725157,1753723865263,-466.67,0.00021917,2]
[375725158,1753723865272,-3220.78,0.00021917,2]
[375725159,1753723865281,-6863.05,0.00021917,2]
[375725160,1753723865290,-567.93,0.00021917,2]
[375725161,1753723865299,-177.2797368,0.00021917,2]
[375725162,1753723865309,-460.0,0.00021917,2]
[375725163,1753723865319,-755.71,0.00021917,2]
[375725164,1753723865328,-151.0,0.00021917,2]
[375725165,1753723865338,-460.0,0.00021917,2]
[375725166,1753723865347,-1308.97,0.00021917,2]
[375725167,1753723865356,-151.0,0.00021917,2]
[375725168,1753723865366,-283.9040737,0.00021917,2]
[375725169,1753723865375,-460.0,0.00021917,2]
[375725170,1753723865386,-460.0,0.00021917,2]
[375725171,1753723865395,-843.74,0.00021917,2]
[375725172,1753723865404,-460.0,0.00021917,2]
[375725173,1753723865414,-460.0,0.00021917,2]
[375725174,1753723865423,-2994.97,0.00021917,2]
[375725175,1753723865433,-460.0,0.00021917,2]
[375725176,1753723865443,-460.0,0.00021917,2]
[375725177,1753723865452,-643.566671,0.00021918,2]
[375725178,1753723865461,-643.566671,0.00021918,2]
[375725179,1753723865470,-643.566671,0.00021918,2]
[375725180,1753723865479,-643.566671,0.00021918,2]
[375725181,1753723865489,-643.566671,0.00021918,2]
[375725182,1753723865499,-643.566671,0.00021918,2]
[375725183,1753723865508,-643.566671,0.00021918,2]
[375725184,1753723865517,-643.566671,0.00021918,2]
[375725185,1753723865527,-643.566671,0.00021918,2]
[375725186,1753723865536,-643.566671,0.00021918,2]
[375725187,1753723865546,-643.566671,0.00021918,2]
[375725188,1753723865557,-643.566671,0.00021918,2]
[375725189,1753723865567,-297.47172873,0.00021918,6]
[375725190,1753723865577,-300.0,0.00021918,2]
[375725191,1753723865586,-349.0,0.00021918,2]
[375725192,1753723865597,-199.42810281,0.00021918,2]
[375725193,1753723865606,-151.0,0.00021918,2]
[375725194,1753723865615,-151.0,0.00021918,2]
[375725195,1753723865625,-151.0,0.00021918,2]
[375725196,1753723865635,-151.0,0.00021918,2]
[375725197,1753723865645,-832.0,0.00021918,2]
[375725198,1753723865654,-151.0,0.00021918,2]
[375725199,1753723865664,-231.73329908,0.00021918,2]
[375725200,1753723865673,-151.0,0.00021918,2]
[375725201,1753723865682,-163.35391302,0.00021918,2]
[375725202,1753723865692,-151.0,0.00021918,2]
[375725203,1753723865701,-151.0,0.00021918,2]
[375725204,1753723865710,-500.0,0.00021918,2]
[375725205,1753723865720,-500.0,0.00021918,2]
[375725206,1753723865729,-488.09798802,0.00021918,2]
[375725207,1753723865738,-153.0,0.00021948,2]
[375725208,1753723865747,-153.0,0.00021948,2]
[375725209,1753723865757,-153.0,0.00021948,2]
[375725210,1753723865766,-5120.73618664,0.00021948,2]
[375725211,1753723865775,-3066.0,0.00022,10]
[375725212,1753723865785,-19262.92074514,0.00022,2]
[375725213,1753723865795,-1104.15,0.00022,7]
[375725214,1753723865804,-3031.72,0.00022,7]
[375725215,1753723865813,-13442.97,0.00022,7]
[375725216,1753723865822,-151.0,0.00022,7]
[375725217,1753723865831,-151.0,0.00022,7]
[375725218,1753723865840,-151.0,0.00022,7]
[375725219,1753723865850,-151.0,0.00022,7]
[375725220,1753723865859,-151.0,0.00022,7]
[375725221,1753723865868,-151.0,0.00022,7]
[375725222,1753723865878,-42446.48,0.00022,2]
[375725223,1753723865888,-151.0,0.00022,7]
[375725224,1753723865897,-151.0,0.00022,7]
[375725225,1753723865906,-322.548379,0.00022,7]
[375725226,1753723865916,-322.548379,0.00022,7]
[375725227,1753723865925,-169.007813,0.00022,7]
[375725228,1753723865935,-169.007813,0.00022,7]
[375725229,1753723865944,-410.323039,0.00022,7]
[375725230,1753723865954,-410.323039,0.00022,7]
[375725231,1753723865963,-695.29025,0.00022,7]
[375725232,1753723865972,-695.29025,0.00022,7]
[375725233,1753723865982,-341.175063,0.00022,7]
[375725234,1753723865991,-341.175063,0.00022,7]
[375725235,1753723866001,-151.0,0.00022,7]
[375725236,1753723866010,-151.0,0.00022,7]
[375725237,1753723866021,-1494.153287,0.00022,7]
[375725238,1753723866031,-1494.153287,0.00022,7]
[375725239,1753723866041,-1000.0,0.00022,2]
[375725240,1753723866050,-312.16666667,0.00022,7]
[375725241,1753723866059,-214.87999826,0.00022,7]
[375725242,1753723866068,-160.0,0.00022,7]
[375725243,1753723866077,-12634.73134317,0.00022,7]
[375725244,1753723866086,-454.6043428,0.00022,7]
[375725245,1753723866096,-353.30824519,0.00022,2]
[375725246,1753723866105,-48306.4034807,0.00022,2]
[375725247,1753723866114,-33625.29134026,0.00022,4]
[375725248,1753723866124,-551.48610052,0.00022,2]
[375725249,1753723866134,-288.1,0.00022,2]
[375725250,1753723866143,-197.0,0.00022,2]
[375725251,1753723866152,-666.797697,0.00022015,2]
[375725252,1753723866161,-454.28546416,0.00022021,2]
[375725253,1753723866170,-179.73040439,0.00022092,2]
[375725254,1753723866179,-4005.43475247,0.000221,2]
[375725255,1753723866189,-417.03,0.00022138,2]
[375725256,1753723866199,-500.0,0.00022164,2]
[375725257,1753723866207,-1500.0,0.00022164,2]
[375725258,1753723866218,-2500.0,0.00022164,2]
[375725259,1753723866227,-248.56,0.0002219,2]
[375725260,1753723866237,-460.0,0.0002219,2]
[375725261,1753723866247,-8297.92,0.0002219,2]
[375725262,1753723866255,-1445.16,0.0002219,2]
[375725263,1753723866265,-1951.38,0.0002219,2]
[375725264,1753723866274,-460.0,0.0002219,2]
[375725265,1753723866283,-2998.53,0.0002219,2]
[375725266,1753723866292,-486.95,0.0002219,2]
[375725267,1753723866301,-200.0,0.0002219,2]
[375725268,1753723866310,-151.0,0.00022191,7]
[375725269,1753723866320,-151.0,0.00022191,7]
[375725270,1753723866329,-151.0,0.00022191,7]
[375725271,1753723866339,-151.0,0.00022191,7]
[375725272,1753723866348,-460.0,0.00022191,2]
[375725273,1753723866358,-151.0,0.00022191,7]
[375725274,1753723866367,-151.0,0.00022191,7]
[375725275,1753723866376,-460.0,0.00022191,2]
[375725276,1753723866389,-628.0,0.00022191,2]
[375725277,1753723866398,-923.47,0.00022191,2]
[375725278,1753723866408,-460.0,0.00022191,2]
[375725279,1753723866518,-984.91,0.00022191,2]
[375725280,1753723866527,-858.0,0.00022191,2]
[375725281,1753723866537,-151.0,0.00022191,7]
[375725282,1753723866546,-193.149745,0.00022191,7]
[375725283,1753723866559,-151.0,0.00022191,7]
[375725284,1753723866569,-460.0,0.00022191,2]
[375725285,1753723866578,-460.0,0.00022191,2]
[375725286,1753723866587,-460.0,0.00022191,2]
[375725287,1753723866597,-460.0,0.00022191,2]
[375725288,1753723866607,-965.77,0.00022191,2]
[375725289,1753723866616,-460.0,0.00022191,2]
[375725290,1753723866627,-667.09,0.00022191,2]
[375725291,1753723866639,-460.0,0.00022191,2]
[375725292,1753723866648,-460.0,0.00022191,2]
[375725293,1753723866658,-460.0,0.00022191,2]
[375725294,1753723866667,-460.0,0.00022191,2]
[375725295,1753723866676,-460.0,0.00022191,2]
[375725296,1753723866685,-1902.34,0.00022191,2]
[375725297,1753723866694,-2739.1,0.00022191,2]
[375725298,1753723866703,-753.97,0.00022191,2]
[375725299,1753723866712,-460.0,0.00022191,2]
[375725300,1753723866723,-460.0,0.00022191,2]
[375725301,1753723866733,-788.49,0.00022191,2]
[375725302,1753723866742,-460.0,0.00022191,2]
[375725303,1753723866751,-1015.33,0.00022191,2]
[375725304,1753723866761,-836.54,0.00022191,2]
[375725305,1753723866770,-1096.29,0.00022191,2]
[375725306,1753723866780,-610.17,0.00022191,2]
[375725307,1753723866789,-4427.46,0.00022191,2]
[375725308,1753723866798,-858.49,0.00022191,2]
[375725309,1753723866807,-546.53,0.00022191,2]
[375725310,1753723866817,-460.0,0.00022191,2]
[375725311,1753723866827,-677.12,0.00022191,2]
[375725312,1753723866836,-3937.57,0.00022191,2]
[375725313,1753723866845,-565.78,0.00022191,2]
[375725314,1753723866854,-460.0,0.00022191,2]
[375725315,1753723866863,-194.94665866,0.00022191,2]
[375725316,1753723866872,-460.0,0.00022191,2]
[375725317,1753723866884,-460.0,0.00022191,2]
[375725318,1753723866894,-366.716529,0.00022191,7]
[375725319,1753723866903,-1054.55,0.00022191,2]
[375725320,1753723866914,-366.716529,0.00022191,7]
[375725321,1753723866923,-847.96,0.00022191,2]
[375725322,1753723866932,-644.34,0.00022191,2]
[375725323,1753723866942,-460.0,0.00022191,2]
[375725324,1753723866952,-618.62,0.00022191,2]
[375725325,1753723866961,-653.34,0.00022191,2]
[375725326,1753723866970,-460.0,0.00022191,2]
[375725327,1753723866980,-776.44,0.00022191,2]
[375725328,1753723866989,-460.0,0.00022191,2]
[375725329,1753723866998,-460.0,0.00022191,2]
[375725330,1753723867007,-742.6,0.00022191,2]
[375725331,1753723867016,-488.58,0.00022191,2]
[375725332,1753723867026,-2338.21,0.00022191,2]
[375725333,1753723867035,-1430.15,0.00022191,2]
[375725334,1753723867044,-693.43,0.00022191,2]
[375725335,1753723867054,-1043.6,0.00022191,2]
[375725336,1753723867063,-643.566671,0.00022191,7]
[375725337,1753723867073,-466.67,0.00022191,2]
[375725338,1753723867083,-3220.78,0.00022191,2]
[375725339,1753723867092,-643.566671,0.00022191,7]
[375725340,1753723867102,-6863.05,0.00022191,2]
[375725341,1753723867111,-567.93,0.00022191,2]
[375725342,1753723867120,-460.0,0.00022191,2]
[375725343,1753723867130,-755.71,0.00022191,2]
[375725344,1753723867141,-151.0,0.00022191,7]
[375725345,1753723867150,-460.0,0.00022191,2]
[375725346,1753723867160,-1308.97,0.00022191,2]
[375725347,1753723867169,-151.0,0.00022191,7]
[375725348,1753723867179,-460.0,0.00022191,2]
[375725349,1753723867188,-460.0,0.00022191,2]
[375725350,1753723867198,-843.74,0.00022191,2]
[375725351,1753723867207,-460.0,0.00022191,2]
[375725352,1753723867217,-460.0,0.00022191,2]
[375725353,1753723867226,-2994.97,0.00022191,2]
[375725354,1753723867236,-460.0,0.00022191,2]
[375725355,1753723867245,-245.05000522,0.00022192,2]
[375725356,1753723867255,-245.0,0.00022192,2]
[375725357,1753723867264,-832.0,0.00022192,2]
[375725358,1753723867274,-198.0,0.00022192,2]
[375725359,1753723867283,-151.0,0.00022192,2]
[375725360,1753723867292,-151.0,0.00022192,2]
[375725361,1753723867302,-151.0,0.00022192,2]
[375725362,1753723867311,-5000.0,0.00022205,4]
[375725363,1753723867320,-1036.9,0.00022262,4]
[375725364,1753723867329,-827.0,0.00022263,2]
[375725365,1753723867339,-151.0,0.00022288,7]
[375725366,1753723867348,-405.616168,0.00022288,7]
[375725367,1753723867357,-405.616168,0.00022288,7]
[375725368,1753723867367,-395.660519,0.00022288,7]
[375725369,1753723867378,-395.660519,0.00022288,7]
[375725370,1753723867390,-160.0,0.00022289,3]
[375725371,1753723867399,-312.16666667,0.0002229,3]
[375725372,1753723867408,-214.87999826,0.0002229,3]
[375725373,1753723867418,-160.0,0.0002229,3]
[375725374,1753723867427,-12634.73134317,0.0002229,3]
[375725375,1753723867436,-454.6043428,0.0002229,3]
[375725376,1753723867446,-200.0,0.000223,2]
[375725377,1753723867456,-460.0,0.00022372,2]
[375725378,1753723867465,-184.1928364,0.0002239,2]
[375725379,1753723867478,-827.0,0.00022393,2]
[375725380,1753723867487,-39390.5848579,0.00022431,2]
[375725381,1753723867496,-5888.0,0.00022457,2]
[375725382,1753723867506,-347.20436139,0.00022464,2]
[375725383,1753723867515,-8297.92,0.00022464,2]
[375725384,1753723867524,-1445.16,0.00022464,2]
[375725385,1753723867533,-1951.38,0.00022464,2]
[375725386,1753723867543,-460.0,0.00022464,2]
[375725387,1753723867555,-2998.53,0.00022464,2]
[375725388,1753723867566,-486.95,0.00022464,2]
[375725389,1753723867575,-396.31837,0.00022465,2]
[375725390,1753723867585,-322.877036,0.00022465,7]
[375725391,1753723867595,-151.0,0.00022465,7]
[375725392,1753723867604,-322.877036,0.00022465,7]
[375725393,1753723867614,-151.0,0.00022465,7]
[375725394,1753723867623,-160.109476,0.00022465,7]
[375725395,1753723867633,-160.109476,0.00022465,7]
[375725396,1753723867642,-151.0,0.00022465,7]
[375725397,1753723867651,-151.0,0.00022465,7]
[375725398,1753723867660,-676.72013,0.00022465,7]
[375725399,1753723867669,-172.39074,0.00022465,7]
[375725400,1753723867679,-172.39074,0.00022465,7]
[375725401,1753723867688,-151.0,0.00022465,7]
[375725402,1753723867699,-151.0,0.00022465,7]
[375725403,1753723867708,-151.0,0.00022465,7]
[375725404,1753723867718,-227.98209117,0.00022465,2]
[375725405,1753723867727,-151.0,0.00022465,7]
[375725406,1753723867737,-460.0,0.00022465,2]
[375725407,1753723867746,-321.913702,0.00022465,7]
[375725408,1753723867755,-321.913702,0.00022465,7]
[375725409,1753723867765,-151.0,0.00022465,7]
[375725410,1753723867775,-628.0,0.00022465,2]
[375725411,1753723867784,-923.47,0.00022465,2]
[375725412,1753723867794,-460.0,0.00022465,2]
[375725413,1753723867803,-984.91,0.00022465,2]
[375725414,1753723867812,-858.0,0.00022465,2]
[375725415,1753723867822,-151.0,0.00022465,7]
[375725416,1753723867831,-4340.31483932,0.00022465,2]
[375725417,1753723867841,-151.0,0.00022465,7]
[375725418,1753723867850,-169.007813,0.00022465,7]
[375725419,1753723867859,-169.007813,0.00022465,7]
[375725420,1753723867868,-460.0,0.00022465,2]
[375725421,1753723867877,-460.0,0.00022465,2]
[375725422,1753723867888,-460.0,0.00022465,2]
[375725423,1753723867898,-341.175063,0.00022465,7]
[375725424,1753723867907,-341.175063,0.00022465,7]
[375725425,1753723867917,-460.0,0.00022465,2]
[375725426,1753723867926,-965.77,0.00022465,2]
[375725427,1753723867936,-460.0,0.00022465,2]
[375725428,1753723867945,-667.09,0.00022465,2]
[375725429,1753723867955,-460.0,0.00022465,2]
[375725430,1753723867964,-460.0,0.00022465,2]
[375725431,1753723867973,-460.0,0.00022465,2]
[375725432,1753723867982,-151.0,0.00022465,7]
[375725433,1753723867991,-460.0,0.00022465,2]
[375725434,1753723868000,-1902.34,0.00022465,2]
[375725435,1753723868010,-2739.1,0.00022465,2]
[375725436,1753723868019,-753.97,0.00022465,2]
[375725437,1753723868028,-460.0,0.00022465,2]
[375725438,1753723868038,-460.0,0.00022465,2]
[375725439,1753723868047,-788.49,0.00022465,2]
[375725440,1753723868057,-460.0,0.00022465,2]
[375725441,1753723868066,-1015.33,0.00022465,2]
[375725442,1753723868076,-836.54,0.00022465,2]
[375725443,1753723868085,-1096.29,0.00022465,2]
[375725444,1753723868095,-610.17,0.00022465,2]
[375725445,1753723868105,-4427.46,0.00022465,2]
[375725446,1753723868114,-858.49,0.00022465,2]
[375725447,1753723868123,-546.53,0.00022465,2]
[375725448,1753723868135,-460.0,0.00022465,2]
[375725449,1753723868145,-677.12,0.00022465,2]
[375725450,1753723868155,-3937.57,0.00022465,2]
[375725451,1753723868164,-565.78,0.00022465,2]
[375725452,1753723868174,-460.0,0.00022465,2]
[375725453,1753723868183,-460.0,0.00022465,2]
[375725454,1753723868192,-460.0,0.00022465,2]
[375725455,1753723868201,-1054.55,0.00022465,2]
[375725456,1753723868210,-847.96,0.00022465,2]
[375725457,1753723868219,-644.34,0.00022465,2]
[375725458,1753723868229,-460.0,0.00022465,2]
[375725459,1753723868242,-618.62,0.00022465,2]
[375725460,1753723868263,-653.34,0.00022465,2]
[375725461,1753723868277,-460.0,0.00022465,2]
[375725462,1753723868287,-776.44,0.00022465,2]
[375725463,1753723868296,-460.0,0.00022465,2]
[375725464,1753723868305,-460.0,0.00022465,2]
[375725465,1753723868314,-742.6,0.00022465,2]
[375725466,1753723868324,-488.58,0.00022465,2]
[375725467,1753723868333,-2338.21,0.00022465,2]
[375725468,1753723868342,-1430.15,0.00022465,2]
[375725469,1753723868351,-693.43,0.00022465,2]
[375725470,1753723868361,-1043.6,0.00022465,2]
[375725471,1753723868371,-466.67,0.00022465,2]
[375725472,1753723868380,-3220.78,0.00022465,2]
[375725473,1753723868492,-6863.05,0.00022465,2]
[375725474,1753723868501,-567.93,0.00022465,2]
[375725475,1753723868511,-460.0,0.00022465,2]
[375725476,1753723868521,-755.71,0.00022465,2]
[375725477,1753723868531,-1308.97,0.00022465,2]
[375725478,1753723868540,-460.0,0.00022465,2]
[375725479,1753723868550,-843.74,0.00022465,2]
[375725480,1753723868564,-460.0,0.00022465,2]
[375725481,1753723868573,-460.0,0.00022465,2]
[375725482,1753723868582,-2994.97,0.00022465,2]
[375725483,1753723868592,-457.43506182,0.00022465,2]
[375725484,1753723868602,-832.0,0.00022466,2]
[375725485,1753723868611,-151.0,0.00022466,2]
[375725486,1753723868621,-151.0,0.00022466,2]
[375725487,1753723868633,-151.0,0.00022466,2]
[375725488,1753723868644,-12634.73134317,0.0002247,7]
[375725489,1753723868654,-49381.5,0.0002248,7]
[375725490,1753723868663,-151.0,0.0002248,7]
[375725491,1753723868672,-151.0,0.0002248,7]
[375725492,1753723868682,-151.0,0.0002248,7]
[375725493,1753723868691,-151.0,0.0002248,7]
[375725494,1753723868700,-151.0,0.0002248,7]
[375725495,1753723868710,-151.0,0.0002248,7]
[375725496,1753723868719,-151.0,0.0002248,7]
[375725497,1753723868729,-151.0,0.0002248,7]
[375725498,1753723868743,-151.0,0.0002248,7]
[375725499,1753723868752,-151.0,0.0002248,7]
[375725500,1753723868761,-168.264253,0.0002248,7]
[375725501,1753723868770,-168.264253,0.0002248,7]
[375725502,1753723868778,-241.70436,0.0002248,7]
[375725503,1753723868787,-328.073899,0.0002248,7]
[375725504,1753723868795,-328.073899,0.0002248,7]
[375725505,1753723868804,-205.16957,0.0002248,7]
[375725506,1753723868814,-205.16957,0.0002248,7]
[375725507,1753723868823,-322.548379,0.0002248,7]
[375725508,1753723868832,-322.548379,0.0002248,7]
[375725509,1753723868842,-151.0,0.0002248,7]
[375725510,1753723868851,-151.0,0.0002248,7]
[375725511,1753723868860,-410.323039,0.0002248,7]
[375725512,1753723868869,-410.323039,0.0002248,7]
[375725513,1753723868878,-695.29025,0.0002248,7]
[375725514,1753723868892,-695.29025,0.0002248,7]
[375725515,1753723868905,-151.0,0.0002248,7]
[375725516,1753723868915,-1494.153287,0.0002248,7]
[375725517,1753723868924,-1494.153287,0.0002248,7]
[375725518,1753723868933,-643.566671,0.0002248,7]
[375725519,1753723868943,-643.566671,0.0002248,7]
[375725520,1753723868952,-501051.67776798,0.0002249,7]
[375725521,1753723868973,-188152.62561361,0.0002249,7]
[375725522,1753723868982,-95238.75008817,0.0002249,7]
[375725523,1753723868991,-151.0,0.0002249,7]
[375725524,1753723869001,-151.0,0.0002249,7]
[375725525,1753723869010,-151.0,0.0002249,7]
[375725526,1753723869019,-286.9,0.0002249,7]
[375725527,1753723869029,-151.0,0.0002249,7]
[375725528,1753723869041,-322.877036,0.0002249,7]
[375725529,1753723869050,-151.0,0.0002249,7]
[375725530,1753723869059,-322.877036,0.0002249,7]
[375725531,1753723869068,-151.0,0.0002249,7]
[375725532,1753723869078,-151.0,0.0002249,7]
[375725533,1753723869087,-151.0,0.0002249,7]
[375725534,1753723869096,-151.0,0.0002249,7]
[375725535,1753723869107,-220.232241,0.0002249,7]
[375725536,1753723869116,-151.0,0.0002249,7]
[375725537,1753723869126,-160.109476,0.0002249,7]
[375725538,1753723869139,-160.109476,0.0002249,7]
[375725539,1753723869148,-151.0,0.0002249,7]
[375725540,1753723869157,-151.0,0.0002249,7]
[375725541,1753723869167,-676.72013,0.0002249,7]
[375725542,1753723869176,-172.39074,0.0002249,7]
[375725543,1753723869185,-172.39074,0.0002249,7]
[375725544,1753723869195,-151.0,0.0002249,7]
[375725545,1753723869204,-274.119824,0.0002249,7]
[375725546,1753723869213,-151.0,0.0002249,7]
[375725547,1753723869222,-151.0,0.0002249,7]
[375725548,1753723869231,-151.0,0.0002249,7]
[375725549,1753723869240,-151.0,0.0002249,7]
[375725550,1753723869251,-151.0,0.0002249,7]
[375725551,1753723869260,-151.0,0.0002249,7]
[375725552,1753723869270,-151.0,0.0002249,7]
[375725553,1753723869279,-151.0,0.0002249,7]
[375725554,1753723869289,-168.264253,0.0002249,7]
[375725555,1753723869298,-168.264253,0.0002249,7]
[375725556,1753723869308,-151.0,0.0002249,7]
[375725557,1753723869317,-151.0,0.0002249,7]
[375725558,1753723869326,-151.0,0.0002249,7]
[375725559,1753723869336,-151.0,0.0002249,7]
[375725560,1753723869345,-321.913702,0.0002249,7]
[375725561,1753723869355,-321.913702,0.0002249,7]
[375725562,1753723869365,-328.073899,0.0002249,7]
[375725563,1753723869374,-328.073899,0.0002249,7]
[375725564,1753723869385,-151.0,0.0002249,7]
[375725565,1753723869394,-405.616168,0.0002249,7]
[375725566,1753723869403,-405.616168,0.0002249,7]
[375725567,1753723869412,-151.0,0.0002249,7]
[375725568,1753723869422,-205.16957,0.0002249,7]
[375725569,1753723869431,-205.16957,0.0002249,7]
[375725570,1753723869440,-1500.0,0.0002249,14]
[375725571,1753723869449,-174.695818,0.0002249,7]
[375725572,1753723869458,-1500.0,0.0002249,14]
[375725573,1753723869468,-1500.0,0.0002249,14]
[375725574,1753723869479,-1500.0,0.0002249,14]
[375725575,1753723869488,-1500.0,0.0002249,14]
[375725576,1753723869497,-1500.0,0.0002249,14]
[375725577,1753723869507,-1500.0,0.0002249,14]
[375725578,1753723869516,-1500.0,0.0002249,14]
[375725579,1753723869526,-410.385746,0.0002249,14]
[375725580,1753723869536,-151.0,0.0002249,7]
[375725581,1753723869545,-322.548379,0.0002249,7]
[375725582,1753723869554,-322.548379,0.0002249,7]
[375725583,1753723869568,-169.007813,0.0002249,7]
[375725584,1753723869577,-151.0,0.0002249,7]
[375725585,1753723869587,-169.007813,0.0002249,7]
[375725586,1753723869596,-151.0,0.0002249,7]
[375725587,1753723869606,-410.323039,0.0002249,7]
[375725588,1753723869615,-410.323039,0.0002249,7]
[375725589,1753723869625,-695.29025,0.0002249,7]
[375725590,1753723869634,-695.29025,0.0002249,7]
[375725591,1753723869644,-341.175063,0.0002249,7]
[375725592,1753723869655,-341.175063,0.0002249,7]
[375725593,1753723869665,-151.0,0.0002249,7]
[375725594,1753723869675,-395.660519,0.0002249,7]
[375725595,1753723869684,-395.660519,0.0002249,7]
[375725596,1753723869693,-1494.153287,0.0002249,7]
[375725597,1753723869703,-1494.153287,0.0002249,7]
[375725598,1753723869713,-366.716529,0.0002249,7]
[375725599,1753723869723,-366.716529,0.0002249,7]
[375725600,1753723869732,-643.566671,0.0002249,7]
[375725601,1753723869741,-643.566671,0.0002249,7]
[375725602,1753723869750,-151.0,0.0002249,7]
[375725603,1753723869759,-5120.73618664,0.00022496,2]
[375725604,1753723869768,-1000.0,0.000225,2]
[375725605,1753723869778,-312.16666667,0.000225,7]
[375725606,1753723869787,-288.1,0.00022555,2]
[375725607,1753723869797,-346.0,0.00022556,2]
[375725608,1753723869806,-246.40088443,0.000226,4]
[375725609,1753723869815,-461.183212,0.00022603,2]
[375725610,1753723869825,-174.695818,0.00022612,4]
[375725611,1753723869834,-526.0,0.00022622,2]
[375725612,1753723869844,-417.03,0.00022634,2]
[375725613,1753723869855,-1036.9,0.00022639,5]
[375725614,1753723869864,-163.2242894,0.00022642,2]
[375725615,1753723869874,-177.9945606,0.00022642,2]
[375725616,1753723869884,-160.0754546,0.00022642,2]
[375725617,1753723869893,-160.0754546,0.00022642,2]
[375725618,1753723869902,-174.695818,0.00022672,7]
[375725619,1753723869911,-526.0,0.00022708,2]
[375725620,1753723869921,-397.0,0.00022709,2]
[375725621,1753723869930,-2134.13605867,0.00022712,2]
[375725622,1753723869939,-174.695818,0.00022721,5]
[375725623,1753723869948,-526.0,0.00022733,2]
[375725624,1753723869958,-8297.92,0.00022738,2]
[375725625,1753723869967,-1445.16,0.00022738,2]
[375725626,1753723869976,-1951.38,0.00022738,2]
[375725627,1753723869985,-460.0,0.00022738,2]
[375725628,1753723869995,-2998.53,0.00022738,2]
[375725629,1753723870005,-486.95,0.00022738,2]
[375725630,1753723870014,-151.0,0.00022739,7]
[375725631,1753723870023,-151.0,0.00022739,7]
[375725632,1753723870032,-151.0,0.00022739,7]